bitfinex/quotes_ETHUSD_20251028
["timestamp","ask_amount","ask_price","bid_price","bid_amount"]
[1761661553226,0.6688,4157.8,4156.5,0.58994922]
[1761661553525,2.40545475,4157.3,4156.4,2.40588092]
[1761661553729,2.40529329,4157.5,4156.1,2.0027]
[1761661553895,2.40523653,4157.6,4156.7,2.40571897]
[1761661554091,2.40523653,4157.6,4155.9,2.4061732]
[1761661554092,0.2237,4156.2,4155.1,0.85468564]
[1761661554334,0.2237,4157.8,4155.2,0.051]
[1761661554335,0.94828886,4157.6,4155.2,0.051]
[1761661554504,2.40622151,4155.9,4155.2,0.4985]
[1761661554826,2.40582884,4156.6,4155.2,0.4985]
[1761661555032,2.40534949,4157.4,4155.2,0.051]
[1761661555033,2.40625208,4155.9,4155.2,0.051]
[1761661555225,2.40618615,4156.0,4155.2,0.051]
[1761661555427,0.2237,4156.7,4155.2,0.051]
[1761661555613,2.40635598,4155.7,4155.3,0.4475]
[1761661555820,2.40640031,4155.6,4155.2,0.051]
[1761661556119,2.40673815,4155.1,4154.5,0.1496]
[1761661556323,1.5552,4156.5,4154.5,0.1496]
[1761661556492,2.40684923,4154.9,4154.5,0.1496]
[1761661556696,2.40685021,4154.9,4154.5,0.1496]
[1761661557121,2.40692038,4154.7,4154.5,0.1496]
[1761661557309,0.4451,4155.5,4154.3,0.02265874]
[1761661557518,2.40675198,4155.0,4154.3,0.20364422]
[1761661557730,1.5552,4156.4,4154.4,0.4475]
[1761661557731,2.40663191,4155.2,4154.4,0.4475]
[1761661557935,2.40663191,4155.2,4154.3,0.20364422]
[1761661557936,2.40669246,4155.1,4154.3,0.02265874]
[1761661558153,2.40673886,4155.0,4154.3,0.02265874]
[1761661558307,2.40682192,4154.9,4154.3,0.02265874]
[1761661558503,2.40673889,4155.0,4154.3,0.02265874]
[1761661559041,2.40674203,4155.0,4154.3,0.02265874]
[1761661559240,0.4451,4155.4,4154.3,0.02265874]
[1761661559416,0.2237,4154.9,4154.3,0.02265874]
[1761661559618,0.4451,4155.1,4154.3,0.15889422]
[1761661559838,2.40680639,4154.9,4154.3,0.15889422]
[1761661560031,2.40675435,4155.0,4154.3,0.15889422]
[1761661560231,0.4451,4155.1,4154.3,0.02265874]
[1761661560431,0.4451,4155.2,4154.3,0.02265874]
[1761661560745,2.40657839,4155.3,4154.4,0.4475]
[1761661560931,0.4451,4155.2,4154.3,0.02265874]
[1761661561137,0.4451,4155.2,4154.3,0.02465874]
[1761661561446,2.40681171,4154.9,4154.3,0.01621482]
[1761661561649,2.40697927,4154.6,4154.3,0.01621482]
[1761661561941,0.4451,4155.1,4154.3,0.04028626]
[1761661562119,0.4451,4155.6,4154.4,0.02407086]
[1761661562322,2.40674291,4155.0,4154.3,0.01621482]
[1761661562523,2.40680544,4154.9,4154.3,0.01621482]
[1761661562914,2.8518298,4155.1,4154.3,2.42335355]
[1761661563238,2.40665011,4155.2,4154.3,2.42335355]
[1761661563239,0.4451,4155.5,4154.5,2.40702061]
[1761661563441,0.4451,4155.5,4154.6,0.0240697]
[1761661563610,2.40652085,4155.4,4154.6,2.43101609]
[1761661563810,0.2237,4155.7,4154.6,0.0240697]
[1761661564005,2.40625065,4155.9,4155.0,2.40669085]
[1761661564314,2.4062719,4155.9,4154.7,0.4475]
[1761661564509,0.4451,4156.2,4155.1,2.40663539]
[1761661564713,0.4451,4156.2,4154.8,0.28544583]
[1761661564944,0.4451,4156.2,4154.3,0.47331482]
[1761661564945,2.406287,4155.8,4154.3,0.47331482]
[1761661565144,0.4451,4156.2,4154.4,1.5552]
[1761661565330,0.4652,4156.1,4154.4,1.5552]
[1761661565642,0.4652,4156.1,4154.8,2.40684566]
[1761661565848,2.40628944,4155.8,4154.9,2.4067814]
[1761661566141,2.40634631,4155.7,4155.0,2.40672149]
[1761661566440,0.4652,4155.7,4154.5,2.40700579]
[1761661566614,0.4652,4155.6,4154.5,0.50057166]
[1761661566815,2.4067281,4155.1,4154.3,1.57141482]
[1761661567013,2.40675872,4155.0,4154.3,0.01621482]
[1761661567246,2.87167773,4155.5,4154.3,0.01621482]
[1761661567556,2.40673886,4155.0,4154.9,0.12]
[1761661567715,0.12,4155.6,4154.9,0.12]
[1761661567915,2.4066891,4155.1,4154.9,0.12]
[1761661568157,2.40673886,4155.0,4154.9,0.12]
[1761661568655,2.86076167,4155.5,4154.9,0.12]
[1761661568836,2.40643594,4155.6,4154.9,0.12]
[1761661569024,0.2266,4155.8,4155.3,0.12]
[1761661569224,2.40603236,4156.3,4155.5,0.12]
[1761661569225,0.4543,4156.3,4155.5,0.12]
[1761661569441,2.40619511,4156.0,4155.5,0.12]
[1761661569629,0.2187,4155.6,4155.5,0.12]
[1761661569826,0.12,4156.3,4155.3,0.051]
[1761661570029,2.98017501,4156.5,4155.8,0.12]
[1761661570347,2.40594031,4156.4,4156.2,0.12]
[1761661570552,2.86018264,4156.5,4156.2,0.12]
[1761661570748,2.40598609,4156.3,4156.2,0.12]
[1761661571113,2.4061981,4156.0,4155.3,0.051]
[1761661571314,0.12,4156.5,4155.8,0.12]
[1761661571555,0.2237,4156.7,4155.3,0.051]
[1761661571556,2.40594092,4156.4,4156.0,0.12]
[1761661571734,2.40581244,4156.6,4156.0,0.12]
[1761661571942,0.4543,4156.5,4156.0,0.12]
[1761661572825,2.40610187,4156.1,4156.0,0.12]
[1761661573028,2.40605104,4156.2,4156.0,0.12]
[1761661573433,0.4543,4156.2,4156.0,0.12]
[1761661573710,0.798,4156.7,4156.0,0.12]
[1761661573912,2.62950104,4156.7,4156.0,0.12]
[1761661574262,2.62950104,4156.7,4156.3,0.12]
[1761661574263,0.4543,4156.6,4156.3,0.12]
[1761661574430,2.40587032,4156.5,4156.3,0.12]
[1761661574630,2.4059282,4156.4,4156.3,0.12]
[1761661574831,2.8602282,4156.4,4156.3,0.12]
[1761661575954,2.40610221,4156.1,4156.0,0.12]
[1761661576335,2.86040221,4156.1,4156.0,0.12]
[1761661576540,0.4543,4156.1,4154.8,0.051]
[1761661576893,2.40605993,4156.2,4155.2,2.4065704]
[1761661577059,2.40620695,4156.0,4155.2,2.4065704]
[1761661577268,2.40623988,4155.9,4155.2,2.4065704]
[1761661577565,2.40617,4156.0,4155.0,2.40669508]
[1761661577762,2.40617,4156.0,4155.1,2.40664832]
[1761661577919,2.40617,4156.0,4155.0,5.06339892]
[1761661577920,2.40633634,4155.7,4155.0,5.06339892]
[1761661578114,0.2187,4155.9,4155.1,2.40666296]
[1761661578356,0.673,4155.9,4155.0,2.65667227]
[1761661578554,2.40637362,4155.7,4155.0,2.65667227]
[1761661578753,3.07926939,4155.9,4155.1,0.33356312]
[1761661578954,0.673,4155.9,4155.1,0.33356312]
[1761661579136,2.40628346,4155.8,4155.1,0.33356312]
[1761661579337,2.40628346,4155.8,4154.8,1.6062]
[1761661579338,2.40627556,4155.8,4154.8,1.6062]
[1761661579543,2.40645499,4155.5,4154.8,1.6062]
[1761661579738,2.40645499,4155.5,4154.8,4.01305384]
[1761661579941,2.40656638,4155.3,4154.9,3.73192135]
[1761661580267,2.40652309,4155.4,4154.9,3.73192135]
[1761661580438,0.4543,4155.5,4154.9,3.73192135]
[1761661580653,0.4543,4155.5,4154.5,1.5552]
[1761661580855,0.4543,4155.5,4154.6,2.40696937]
[1761661581059,2.40664195,4155.2,4154.5,1.5552]
[1761661581379,2.40672497,4155.1,4154.5,3.73192135]
[1761661581864,2.86093367,4155.2,4154.5,6.13894861]
[1761661582753,2.40703875,4154.5,4154.3,0.01621482]
[1761661583089,2.40706916,4154.5,4154.3,0.01621482]
[1761661583378,0.405504,4155.4,4154.3,0.01621482]
[1761661583579,0.4543,4154.5,4154.3,0.01621482]
[1761661583879,2.40708646,4154.4,4154.3,0.01621482]
[1761661584277,2.86138646,4154.4,4154.3,0.01621482]
[1761661584478,0.4543,4154.8,4154.3,0.01621482]
[1761661584643,2.40705376,4154.5,4154.3,0.01621482]
[1761661584849,2.40708424,4154.5,4154.3,0.01621482]
[1761661585069,2.40708646,4154.4,4154.3,0.01621482]
[1761661585250,2.86138646,4154.4,4154.3,0.01621482]
[1761661587080,2.40708646,4154.4,4154.3,0.01621482]
[1761661587444,2.86138646,4154.4,4154.3,0.01621482]
[1761661587871,2.4084476,4154.5,4154.3,0.01621482]
[1761661588269,0.001394,4154.5,4154.3,0.01621482]
[1761661589091,0.001394,4154.5,4154.4,0.12]
[1761661589387,2.86272252,4154.5,4154.4,0.12]
[1761661589773,0.001394,4154.5,4154.4,0.12]
[1761661591954,2.40842252,4154.5,4154.3,0.01621482]
[1761661592202,2.40708646,4154.4,4154.3,0.01621482]
[1761661592399,2.86138646,4154.4,4154.3,0.01621482]
[1761661594872,3.26689046,4154.4,4154.3,1e-08]
[1761661595182,4.82209046,4154.4,4154.3,1e-08]
[1761661595572,18.17668688,4153.9,4153.8,0.002]
[1761661595771,0.405504,4153.0,4151.5,0.051]
[1761661595986,2.40859404,4151.8,4151.5,0.051]
[1761661596180,2.40861243,4151.8,4151.5,0.051]
[1761661596372,0.6824,4152.9,4151.5,0.051]
[1761661596373,2.40854922,4151.9,4151.5,0.051]
[1761661596596,2.4084202,4152.1,4151.5,0.051]
[1761661597097,0.2373,4152.9,4151.5,0.36139974]
[1761661597297,2.40835075,4152.3,4151.5,0.82679974]
[1761661597498,0.6824,4152.9,4151.5,0.31039974]
[1761661597690,2.40858955,4151.9,4151.2,0.053]
[1761661597888,2.40848564,4152.0,4151.2,0.053]
[1761661598093,2.40832901,4152.3,4150.9,0.1628]
[1761661598272,2.40876847,4151.5,4150.9,0.1628]
[1761661598475,0.405504,4152.3,4150.9,0.4200087]
[1761661598703,0.405504,4152.3,4151.0,3.9642347]
[1761661598874,2.40847686,4152.1,4151.2,2.40893468]
[1761661599201,0.405504,4152.2,4150.9,0.4200087]
[1761661599400,2.40880131,4151.5,4150.9,0.1628]
[1761661599699,2.40873624,4151.6,4150.9,0.1628]
[1761661599899,2.40866701,4151.7,4150.9,0.1628]
[1761661600089,2.40872944,4151.6,4151.0,0.002]
[1761661600308,2.40877069,4151.5,4151.0,0.002]
[1761661600482,2.40865755,4151.7,4151.0,0.002]
[1761661600824,2.40884085,4151.4,4151.0,0.002]
[1761661601304,2.40860216,4151.8,4151.0,0.002]
[1761661601518,0.4451,4152.4,4151.1,0.053]
[1761661601683,2.40858358,4151.9,4151.1,2.46197879]
[1761661601871,2.52843623,4152.1,4151.4,0.12]
[1761661602072,2.52843623,4152.1,4151.1,0.5184]
[1761661602073,0.4451,4152.4,4151.1,0.053]
[1761661602287,0.850604,4152.8,4151.2,0.4654]
[1761661602500,0.12,4152.4,4151.7,0.12]
[1761661602811,0.4451,4152.7,4151.2,0.4654]
[1761661602812,2.40823185,4152.5,4151.6,2.40866657]
[1761661603105,2.40826482,4152.4,4151.7,0.6372678]
[1761661603275,2.40846833,4152.1,4151.2,0.4654]
[1761661603475,0.4451,4152.6,4151.2,2.87432732]
[1761661603675,2.85323822,4152.6,4151.2,0.4654]
[1761661603995,2.40832053,4152.3,4151.5,2.4087164]
[1761661604307,0.6824,4152.9,4151.6,3.73192135]
[1761661604607,2.40825558,4152.4,4151.6,6.14063052]
[1761661604911,0.4451,4152.8,4151.6,4.3925244]
[1761661605071,2.40828767,4152.4,4151.6,6.80122163]
[1761661605272,2.40831004,4152.3,4151.6,6.80122163]
[1761661605505,2.40824698,4152.4,4151.6,6.80122163]
[1761661605672,2.40824698,4152.4,4151.7,3.37619582]
[1761661605874,2.40831076,4152.3,4151.7,0.96754451]
[1761661606087,2.40826022,4152.4,4151.7,3.3761929]
[1761661606492,0.4451,4152.8,4151.7,0.96754451]
[1761661606719,0.4451,4152.8,4151.0,0.002]
[1761661606720,2.40812984,4152.6,4151.0,0.002]
[1761661606893,0.405504,4152.7,4151.0,0.002]
[1761661606894,0.2373,4151.8,4151.0,0.002]
[1761661607414,0.6824,4151.8,4151.0,0.002]
[1761661607583,2.40865187,4151.7,4151.1,0.053]
[1761661607780,2.40873012,4151.6,4151.1,0.36223088]
[1761661607989,2.4087532,4151.6,4151.1,0.30923088]
[1761661608178,2.4087532,4151.6,4151.1,0.36223088]
[1761661608724,2.40877947,4151.5,4151.1,0.36223088]
[1761661609020,0.2373,4151.8,4151.1,0.30923088]
[1761661609313,2.40879429,4151.5,4151.0,0.002]
[1761661609677,2.40865187,4151.7,4151.0,0.002]
[1761661609878,0.2373,4151.8,4151.0,0.002]
[1761661610079,2.40900002,4151.1,4151.0,0.002]
[1761661610514,2.40870989,4151.6,4151.0,0.002]
[1761661610720,2.40890312,4151.3,4151.0,0.002]
[1761661610903,2.40882628,4151.4,4151.0,0.002]
[1761661611201,2.40883433,4151.4,4151.0,0.002]
[1761661611406,2.40889365,4151.3,4151.0,0.002]
[1761661611722,0.4451,4151.7,4151.0,0.002]
[1761661611893,2.40899132,4151.2,4151.0,0.002]
[1761661612222,2.81450402,4151.1,4151.0,0.002]
[1761661612391,2.40900002,4151.1,4151.0,0.002]
[1761661612711,2.52900002,4151.1,4151.0,0.002]
[1761661612889,2.97410002,4151.1,4151.0,0.002]
[1761661613222,2.40900002,4151.1,4151.0,0.002]
[1761661613582,2.85410002,4151.1,4151.0,0.002]
[1761661613778,2.40900002,4151.1,4151.0,0.002]
[1761661614185,0.2373,4151.8,4151.0,0.002]
[1761661614391,2.40893194,4151.3,4151.0,0.002]
[1761661614592,0.405504,4151.7,4151.0,0.002]
[1761661614798,0.642804,4151.8,4151.1,0.2158]
[1761661615022,2.40882593,4151.4,4151.1,0.2158]
[1761661615227,2.40883636,4151.4,4151.1,0.2158]
[1761661615432,0.2373,4151.8,4151.0,0.002]
[1761661615433,2.40900002,4151.1,4151.0,0.002]
[1761661615901,2.85410002,4151.1,4151.0,0.002]
[1761661616433,3.25960402,4151.1,4151.0,0.002]
[1761661617332,18.6234107,4151.1,4151.0,0.002]
[1761661619531,21.1554107,4151.1,4151.0,0.002]
[1761661619921,2.41015223,4149.2,4149.0,0.1264]
[1761661620247,2.532,4149.3,4147.0,0.1496]
[1761661620539,0.405504,4150.2,4147.0,0.1496]
[1761661620540,2.40969661,4149.9,4147.9,0.4654]
[1761661620723,0.405504,4149.9,4147.9,0.4654]
[1761661620925,0.405504,4149.9,4148.0,1.5552]
[1761661621099,0.405504,4149.9,4148.1,0.24063994]
[1761661621304,0.6824,4150.0,4148.1,1.5552]
[1761661621534,0.405504,4150.3,4148.2,2.147]
[1761661621838,0.4451,4150.4,4148.2,0.5918]
[1761661622068,0.4451,4150.8,4148.3,0.4654]
[1761661622265,0.2373,4151.1,4148.7,1.5552]
[1761661622266,0.6824,4151.1,4148.7,1.5552]
[1761661622426,0.4451,4151.7,4148.8,0.92662386]
[1761661622628,0.4451,4151.7,4149.0,1.5552]
[1761661622629,2.40909391,4151.0,4149.0,1.5552]
[1761661622940,2.40915235,4150.9,4149.1,0.6812]
[1761661623159,2.4090136,4151.1,4149.2,1.5552]
[1761661623359,0.4451,4151.5,4149.4,1.5552]
[1761661623565,0.4451,4151.5,4149.3,0.68904]
[1761661623857,2.40897142,4151.2,4150.2,2.40952216]
[1761661624022,2.40893761,4151.3,4150.3,0.615]
[1761661624224,2.40883292,4151.4,4150.8,0.12]
[1761661624538,2.40900609,4151.1,4150.8,0.12]
[1761661624734,0.12,4151.5,4150.8,0.12]
[1761661624961,2.4089539,4151.2,4150.8,0.12]
[1761661625134,2.40900002,4151.1,4150.8,0.12]
[1761661625341,0.6768,4151.8,4150.3,0.1496]
[1761661625646,2.40917388,4150.9,4150.8,0.12]
[1761661626370,2.40962954,4150.1,4149.3,0.4415]
[1761661626531,0.12,4150.6,4149.9,0.12]
[1761661626871,0.2173,4150.9,4149.4,0.4415]
[1761661627157,2.40944113,4150.4,4149.8,0.12]
[1761661627358,0.4395,4151.6,4149.9,2.40966091]
[1761661627570,0.2373,4151.8,4149.6,1.5552]
[1761661627571,2.40895117,4151.2,4149.6,1.5552]
[1761661627747,2.40907024,4151.0,4150.0,2.40960302]
[1761661627949,2.40906825,4151.0,4150.1,0.1496]
[1761661628138,0.4718,4151.7,4150.1,0.5889]
[1761661628327,2.40870989,4151.6,4150.3,2.4094122]
[1761661628530,2.40870989,4151.6,4150.1,2.99846697]
[1761661628531,2.40894633,4151.2,4150.2,0.4393]
[1761661628733,2.40910406,4151.0,4150.3,0.2998467]
[1761661628962,2.40910406,4151.0,4150.2,2.40950436]
[1761661629162,2.40899244,4151.2,4150.3,2.40945419]
[1761661629332,2.027,4151.7,4150.2,0.4393]
[1761661629541,2.40912348,4150.9,4150.2,0.4393]
[1761661629746,2.40907266,4151.0,4150.2,0.4393]
[1761661629946,2.40907266,4151.0,4150.2,3.1486585]
[1761661630171,2.88056496,4151.6,4150.4,2.40937549]
[1761661630363,2.40894132,4151.3,4150.4,2.40937549]
[1761661630771,2.4090001,4151.1,4150.3,2.40944779]
[1761661631265,2.40895185,4151.2,4150.4,2.40938824]
[1761661631461,0.2373,4151.8,4150.5,0.75415311]
[1761661631646,2.40887585,4151.4,4150.5,0.4393]
[1761661631841,0.7091,4151.8,4150.2,0.29984281]
[1761661632077,2.40908382,4151.0,4150.2,1.5552]
[1761661632582,0.2373,4151.8,4150.1,0.1496]
[1761661632583,0.4718,4151.4,4150.1,0.1496]
[1761661632887,2.40913802,4150.9,4150.1,0.1496]
[1761661633084,2.40888396,4151.3,4150.1,0.1496]
[1761661633310,2.40930254,4150.6,4150.1,0.1496]
[1761661633457,2.81456305,4151.0,4149.3,2.41003462]
[1761661633655,2.40936082,4150.5,4149.7,2.40978746]
[1761661633856,0.4718,4151.1,4149.8,2.40974631]
[1761661633857,2.40929534,4150.6,4149.8,2.40974631]
[1761661634176,2.40936202,4150.5,4149.7,2.4098014]
[1761661634377,2.40942474,4150.4,4149.7,2.4098014]
[1761661634579,2.40910835,4151.0,4149.8,0.4393]
[1761661634781,2.40926138,4150.7,4149.4,0.26258346]
[1761661634982,2.40940337,4150.5,4149.5,3.96511809]
[1761661635183,2.40940337,4150.5,4149.8,2.40973405]
[1761661635561,2.628992,4150.6,4149.9,2.40968606]
[1761661635782,0.2197,4150.9,4149.7,0.4393]
[1761661635983,2.40912527,4150.9,4150.1,2.40953604]
[1761661636346,0.405504,4151.7,4150.2,0.5889]
[1761661636559,2.40916013,4150.9,4150.2,0.1496]
[1761661636758,2.40907046,4151.0,4150.2,2.55908176]
[1761661637106,2.40921369,4150.8,4150.2,0.1496]
[1761661637243,2.40925906,4150.7,4150.2,0.1496]
[1761661637449,0.4718,4151.3,4150.1,0.002]
[1761661637651,2.40928024,4150.7,4150.4,0.12]
[1761661638008,0.12,4151.1,4150.4,0.12]
[1761661638009,2.40934827,4150.5,4150.4,0.12]
[1761661638286,2.40934827,4150.5,4150.1,0.002]
[1761661638287,2.027,4150.5,4150.1,0.002]
[1761661638486,0.12,4150.2,4150.1,0.002]
[1761661638861,0.2197,4150.8,4150.1,0.002]
[1761661638862,0.12,4150.5,4150.1,0.002]
[1761661639071,2.40941396,4150.4,4150.1,0.002]
[1761661639267,3.00115146,4150.5,4150.1,0.002]
[1761661639450,2.40947296,4150.3,4150.1,0.002]
[1761661639647,2.40941084,4150.4,4150.1,0.002]
[1761661639876,0.12,4150.5,4150.1,0.1516]
[1761661640081,2.40928239,4150.7,4150.2,0.12]
[1761661640275,2.40930354,4150.6,4150.2,0.12]
[1761661640476,2.40937594,4150.5,4150.2,0.12]
[1761661640680,0.3397,4150.9,4150.2,0.12]
[1761661640896,2.40934579,4150.6,4150.2,0.12]
[1761661641293,2.4092236,4150.8,4150.3,0.4393]
[1761661641507,2.40877731,4151.5,4150.3,0.4393]
[1761661641508,2.40909832,4151.0,4150.3,0.75134962]
[1761661641688,0.12,4151.3,4150.6,0.12]
[1761661641887,0.12,4151.5,4150.8,0.12]
[1761661642103,2.40870989,4151.6,4150.1,0.1516]
[1761661642264,2.40911609,4150.9,4150.3,0.12]
[1761661642468,2.40952243,4150.2,4150.1,0.002]
[1761661642708,2.40946437,4150.3,4150.1,0.002]
[1761661642885,0.2197,4150.4,4150.1,0.002]
[1761661643090,2.40946437,4150.3,4150.1,0.002]
[1761661643414,2.40944998,4150.4,4150.1,0.002]
[1761661643604,2.40947774,4150.3,4150.1,0.002]
[1761661644101,2.40952243,4150.2,4150.1,0.002]
[1761661644405,0.12,4150.5,4150.1,0.002]
[1761661644661,2.40951425,4150.3,4150.1,0.002]
[1761661644805,2.52935306,4150.5,4150.1,0.002]
[1761661645006,2.40940632,4150.4,4150.1,0.002]
[1761661645205,0.12,4150.5,4150.1,0.002]
[1761661645389,2.40946437,4150.3,4150.1,0.002]
[1761661645582,2.52952243,4150.2,4150.1,0.002]
[1761661645765,3.00132243,4150.2,4150.1,0.002]
[1761661646272,3.40682643,4150.2,4150.1,0.002]
[1761661646583,4.96202643,4150.2,4150.1,0.002]
[1761661648607,3.40682643,4150.2,4150.1,0.002]
[1761661648974,3.00132243,4150.2,4150.1,0.002]
[1761661649175,3.28682643,4150.2,4150.1,0.002]
[1761661649799,4.84202643,4150.2,4150.1,0.002]
[1761661650789,4.84202643,4150.2,4150.1,0.000606]
[1761661651510,4.37022643,4150.2,4150.1,0.000606]
[1761661651720,2.81502643,4150.2,4150.1,0.000606]
[1761661651918,2.40952243,4150.2,4150.1,0.000606]
[1761661652915,2.52946616,4150.3,4150.1,0.000606]
[1761661653112,2.40952243,4150.2,4150.1,0.000606]
[1761661653286,2.40947583,4150.3,4150.1,0.150206]
[1761661653486,2.40941636,4150.4,4150.1,0.150206]
[1761661653682,2.40946705,4150.3,4150.1,0.150206]
[1761661654298,2.52924182,4150.7,4150.1,0.150206]
[1761661654500,2.40935108,4150.5,4150.1,0.150206]
[1761661654699,0.12,4150.7,4150.1,0.150206]
[1761661654914,2.40946433,4150.4,4150.1,0.150206]
[1761661655086,2.40936492,4150.5,4150.1,0.150206]
[1761661655399,2.40940632,4150.4,4150.1,0.150206]
[1761661655607,2.40947405,4150.3,4150.1,0.150206]
[1761661656488,2.40946437,4150.3,4150.1,0.150206]
[1761661656687,0.12,4150.7,4150.1,0.000606]
[1761661657716,2.40952243,4150.2,4150.1,0.000606]
[1761661658790,2.40948032,4150.3,4150.1,0.150206]
[1761661658991,0.12,4150.7,4150.1,0.150206]
[1761661659319,2.52924243,4150.7,4150.1,0.150206]
[1761661659672,2.40944916,4150.4,4150.1,0.150206]
[1761661659934,2.40948655,4150.3,4150.1,0.150206]
[1761661660509,2.40941973,4150.4,4150.1,0.150206]
[1761661660897,2.40935813,4150.5,4150.1,0.623206]
[1761661661089,2.52925238,4150.7,4150.1,0.623206]
[1761661661289,2.40939269,4150.5,4150.1,0.623206]
[1761661661489,2.40939625,4150.5,4150.1,0.623206]
[1761661661692,2.41011774,4150.9,4150.3,0.12]
[1761661661890,2.40928548,4150.7,4150.3,0.593]
[1761661662318,0.001,4150.9,4150.4,0.473]
[1761661662520,2.40918196,4150.8,4150.5,0.12]
[1761661662727,0.001,4150.9,4150.5,0.12]
[1761661662896,0.001,4150.9,4150.7,0.12]
[1761661663538,2.40917413,4150.8,4150.7,0.12]
[1761661663715,2.41012868,4150.9,4150.7,0.12]
[1761661664321,0.001,4150.9,4150.1,0.150206]
[1761661664496,0.001,4150.9,4150.8,2.52917413]
[1761661664695,0.001,4150.9,4150.8,2.82939154]
[1761661664903,0.001,4150.9,4150.8,0.89321741]
[1761661665594,0.001,4150.9,4150.8,3.30239154]
[1761661668228,0.001,4150.9,4150.8,3.32648328]
[1761661668834,0.001,4150.9,4150.8,4.88168328]
[1761661669039,0.001,4150.9,4150.8,4.85759154]
[1761661669228,0.0002,4150.9,4150.8,4.85759154]
[1761661670136,0.0002,4150.9,4150.8,4.88168328]
[1761661670504,0.0002,4150.9,4150.8,4.85759154]
[1761661672368,0.0002,4150.9,4150.8,4.88168328]
[1761661672926,0.0002,4150.9,4150.8,4.85759154]
[1761661673667,0.0002,4150.9,4150.8,4.88168328]
[1761661674025,0.0002,4150.9,4150.8,5.26748266]
[1761661674226,0.0002,4150.9,4150.8,5.64889492]
[1761661675661,0.0002,4150.9,4150.8,5.24339092]
[1761661675961,0.0002,4150.9,4150.8,2.40917413]
[1761661676263,0.0002,4150.9,4150.8,2.88217413]
[1761661677654,0.0002,4150.9,4150.8,2.90626587]
[1761661678470,0.0002,4150.9,4150.8,2.88217413]
[1761661678755,0.0002,4150.9,4150.8,4.43737413]
[1761661678961,0.0002,4150.9,4150.8,5.5705089]
[1761661679146,0.0002,4150.9,4150.8,5.54641716]
[1761661680666,0.0002,4150.9,4150.8,19.96454534]
[1761661681164,0.0002,4150.9,4150.8,24.10197069]
[1761661681547,0.0002,4150.9,4150.8,20.37004934]
[1761661682545,0.001,4151.4,4151.2,0.241]
[1761661682873,0.4518,4153.5,4153.0,2.40789524]
[1761661683039,0.227,4153.6,4153.1,2.40779167]
[1761661683239,0.227,4153.6,4153.1,2.40778595]
[1761661683560,0.227,4154.0,4152.9,0.49707955]
[1761661683759,2.63435801,4154.0,4153.2,2.40773435]
[1761661684080,0.227,4153.9,4153.0,2.4078979]
[1761661684290,0.227,4153.9,4153.1,0.30072979]
[1761661684650,0.4563,4153.8,4153.1,0.30072979]
[1761661684857,0.4563,4153.8,4152.8,0.1264]
[1761661685172,0.4563,4153.8,4153.2,2.4077762]
[1761661685489,0.4563,4153.8,4153.3,2.40767192]
[1761661685686,0.001,4153.8,4153.3,2.40767192]
[1761661685968,0.4553,4153.7,4153.6,0.12]
[1761661686168,0.001,4153.8,4153.6,0.12]
[1761661686777,0.001,4153.8,4153.6,2.52754234]
[1761661687138,0.001,4153.8,4153.7,2.40749211]
[1761661687481,0.001,4153.8,4153.7,2.90100781]
[1761661687682,0.001,4153.8,4153.7,3.02100781]
[1761661688048,0.001,4153.8,4153.7,0.12]
[1761661689362,0.001,4153.8,4153.7,4.82479611]
[1761661689646,0.001,4153.8,4153.7,5.23467041]
[1761661689973,0.001,4153.8,4153.7,5.21059549]
[1761661690171,0.001,4153.8,4153.7,4.34849149]
[1761661690371,0.001,4153.8,4153.7,1.5552]
[1761661690567,0.001,4153.8,4153.7,1.71072]
[1761661690783,0.001,4153.8,4153.7,4.57481211]
[1761661691096,0.001,4153.8,4153.7,19.37873967]
[1761661691240,0.001,4153.8,4153.7,4.11821211]
[1761661691573,0.001,4153.8,4153.7,19.78424367]
[1761661693672,0.0002,4153.8,4153.7,19.78424367]
[1761661693877,0.0002,4153.8,4153.7,5.36611549]
[1761661696281,0.0002,4153.8,4153.7,4.90951549]
[1761661696576,0.0002,4153.8,4153.7,5.36611549]
[1761661697560,0.0002,4153.8,4153.7,4.50401149]
[1761661697761,0.0002,4153.8,4153.7,3.96269211]
[1761661697979,0.0002,4153.8,4153.7,1.5552]
[1761661698160,0.0002,4153.8,4153.7,3.96269211]
[1761661698563,0.0002,4153.8,4153.7,5.23467041]
[1761661698762,0.0002,4153.8,4153.7,5.21059549]
[1761661699062,0.0002,4153.8,4153.7,7.35382822]
[1761661699384,0.0002,4153.8,4153.7,7.47382822]
[1761661703267,0.0002,4153.8,4153.7,7.01722822]
[1761661703787,0.0002,4153.8,4153.7,7.47382822]
[1761661708398,0.0002,4153.8,4153.7,11.20574957]
[1761661709403,0.0002,4153.8,4153.7,7.71482822]
[1761661710381,0.001,4154.3,4154.2,18.18204237]
[1761661710580,0.001,4154.3,4154.2,20.62677365]
[1761661710987,0.001,4154.3,4154.2,21.32437365]
[1761661712306,0.001,4154.3,4154.2,22.18224571]
[1761661712485,0.001,4154.3,4154.2,21.72564571]
[1761661712797,0.001,4154.3,4154.2,20.86777365]
[1761661712999,0.001,4154.3,4154.2,21.32437365]
[1761661713167,0.001,4154.7,4154.4,0.405504]
[1761661713371,0.001,4154.7,4154.6,5.22606488]
[1761661713678,0.001,4154.7,4154.6,5.61186426]
[1761661713878,0.001,4154.7,4154.6,6.06846426]
[1761661714083,0.001,4154.7,4154.6,5.61186426]
[1761661714272,0.001,4154.7,4154.6,4.75347396]
[1761661714597,0.001,4154.7,4154.6,5.85006098]
[1761661715402,0.001,4154.7,4154.6,6.31286098]
[1761661715600,0.001,4154.7,4154.6,5.85006098]
[1761661717900,0.001,4154.7,4154.6,6.31286098]
[1761661718207,0.0002,4154.7,4154.6,6.31286098]
[1761661718406,0.0002,4154.7,4154.6,7.6013922]
[1761661718699,0.0002,4154.7,4154.6,6.31286098]